bitfinex-derivatives/quotes_BTCF0:USTF0_20250506
["timestamp","ask_amount","ask_price","bid_price","bid_amount"]
[1746519426156,0.6379438,94201.0,94200.0,0.1884]
[1746519426356,0.7026238,94201.0,94200.0,0.1884]
[1746519426756,0.8026238,94201.0,94200.0,0.1884]
[1746519427557,0.7026238,94201.0,94200.0,0.1884]
[1746519429661,0.8026238,94201.0,94200.0,0.1884]
[1746519429863,0.7026238,94201.0,94200.0,0.1884]
[1746519430064,0.7026238,94201.0,94200.0,0.0704]
[1746519430570,0.8026238,94201.0,94200.0,0.0704]
[1746519430966,0.7026238,94201.0,94200.0,0.0704]
[1746519432271,0.7026238,94201.0,94200.0,0.1884]
[1746519432771,0.8026238,94201.0,94200.0,0.1884]
[1746519435274,0.7026238,94201.0,94200.0,0.1884]
[1746519439165,0.7026238,94201.0,94200.0,0.1789]
[1746519440072,0.7026238,94201.0,94200.0,0.1694]
[1746519442777,0.6379438,94201.0,94200.0,0.1693]
[1746519442978,0.7041438,94201.0,94200.0,0.1693]
[1746519445385,0.71619751,94201.0,94200.0,0.1693]
[1746519445884,0.7041438,94201.0,94200.0,0.1693]
[1746519446079,0.7041438,94201.0,94200.0,0.0513]
[1746519447078,0.7041438,94201.0,94200.0,0.1693]
[1746519447079,0.6735438,94201.0,94200.0,0.1693]
[1746519448685,0.6735438,94201.0,94200.0,0.1615]
[1746519449377,0.6735438,94201.0,94200.0,0.435146]
[1746519449580,0.6735438,94201.0,94200.0,0.2228]
[1746519450682,0.6735438,94201.0,94200.0,0.435146]
[1746519450985,0.429,94201.0,94200.0,0.435146]
[1746519451188,0.6413438,94201.0,94200.0,0.435146]
[1746519454588,0.6413438,94201.0,94200.0,0.2228]
[1746519454785,0.002,94201.0,94200.0,0.541302]
[1746519456187,0.16036626,94204.0,94203.0,0.2123393]
[1746519457080,0.2123314,94207.0,94206.0,0.2123325]
[1746519457281,0.0662,94208.0,94207.0,0.2123302]
[1746519457487,0.278528,94208.0,94207.0,0.2123302]
[1746519458082,0.278528,94208.0,94207.0,0.3303302]
[1746519459996,0.310728,94208.0,94207.0,0.3313302]
[1746519465689,0.342928,94208.0,94207.0,0.119]
[1746519467398,0.342928,94208.0,94207.0,0.3313302]
[1746519467890,0.342928,94208.0,94207.0,0.119]
[1746519470993,0.342928,94208.0,94207.0,0.1094]
[1746519472493,0.342928,94208.0,94207.0,0.3217302]
[1746519473701,0.342928,94208.0,94207.0,0.1094]
[1746519473902,0.342928,94208.0,94207.0,0.3217302]
[1746519474294,0.342928,94208.0,94207.0,0.1094]
[1746519474902,0.343448,94208.0,94207.0,0.1094]
[1746519476004,0.343448,94208.0,94207.0,0.1421]
[1746519476703,0.343448,94208.0,94207.0,0.1094]
[1746519480403,0.343448,94208.0,94207.0,0.3217302]
[1746519481404,0.343448,94208.0,94207.0,0.1094]
[1746519482410,0.343448,94208.0,94207.0,0.3217302]
[1746519482708,0.343448,94208.0,94207.0,0.1094]
[1746519483101,0.343448,94208.0,94207.0,0.0999]
[1746519484699,0.343448,94208.0,94207.0,0.0903]
[1746519487013,0.50446966,94208.0,94207.0,0.0903]
[1746519487212,0.50446966,94208.0,94207.0,0.3026302]
[1746519487802,0.50446966,94208.0,94207.0,0.0903]
[1746519489915,0.343448,94208.0,94207.0,0.0903]
[1746519490417,0.343448,94208.0,94207.0,0.1218]
[1746519493914,0.343448,94208.0,94207.0,0.0903]
[1746519497206,0.343448,94208.0,94207.0,0.3026302]
[1746519498614,0.276728,94208.0,94207.0,0.3351302]
[1746519498817,0.311248,94208.0,94207.0,0.3674302]
[1746519499510,0.344848,94208.0,94207.0,0.3674302]
[1746519499711,0.344848,94208.0,94207.0,0.3351302]
[1746519500310,0.344848,94208.0,94207.0,0.3026302]
[1746519506623,0.344848,94208.0,94207.0,0.3365302]
[1746519510028,0.705648,94208.0,94207.0,0.3365302]
[1746519510731,0.705648,94208.0,94207.0,0.1242]
[1746519511023,0.705648,94208.0,94207.0,0.3365302]
[1746519511230,0.705648,94208.0,94207.0,0.1242]
[1746519511418,0.705648,94208.0,94207.0,0.0903]
[1746519512326,0.705648,94208.0,94207.0,0.0808]
[1746519513721,0.705648,94208.0,94207.0,0.0712]
[1746519515231,0.705648,94208.0,94207.0,0.001]
[1746519516130,0.705648,94208.0,94207.0,0.119]
[1746519520833,0.705648,94208.0,94207.0,0.12112298]
[1746519524133,0.705648,94208.0,94207.0,0.11172298]
[1746519526238,0.705648,94208.0,94207.0,0.10212298]
[1746519527638,0.705648,94208.0,94207.0,0.09262298]
[1746519528638,0.705648,94208.0,94207.0,0.08312298]
[1746519528937,0.705648,94208.0,94207.0,0.07362298]
[1746519529543,0.705648,94208.0,94207.0,0.06412298]
[1746519531733,0.705648,94208.0,94207.0,0.05462298]
[1746519532135,0.705648,94208.0,94207.0,0.04512298]
[1746519535840,0.705648,94208.0,94207.0,0.03562298]
[1746519537530,0.705648,94208.0,94207.0,0.06842298]
[1746519537842,0.705648,94208.0,94207.0,0.05892298]
[1746519547847,0.705648,94208.0,94207.0,0.01662298]
[1746519548740,0.805648,94208.0,94207.0,0.00712298]
[1746519548942,0.805648,94208.0,94207.0,0.00702298]
[1746519549648,0.705648,94208.0,94207.0,0.00702298]
[1746519551150,0.705648,94208.0,94207.0,2.298e-05]
[1746519551550,0.2123415,94202.0,94201.0,0.06422298]
[1746519551752,0.5731415,94202.0,94201.0,0.06422298]
[1746519552247,0.6398215,94202.0,94201.0,0.18222298]
[1746519552437,0.6709215,94202.0,94201.0,0.18222298]
[1746519552639,0.6729215,94202.0,94201.0,0.18222298]
[1746519556257,0.6729215,94202.0,94201.0,0.17522298]
[1746519558557,0.7071215,94202.0,94201.0,0.17522298]
[1746519563554,0.7071215,94202.0,94201.0,0.118]
[1746519563755,0.71907081,94202.0,94201.0,0.118]
[1746519563949,0.7071215,94202.0,94201.0,0.118]
[1746519564553,0.7071215,94202.0,94201.0,0.1085]
[1746519564753,0.7071215,94202.0,94201.0,0.099]
[1746519567258,0.7383215,94202.0,94201.0,0.0896]
[1746519569060,0.7383215,94202.0,94201.0,0.0801]
[1746519570561,0.7383215,94202.0,94201.0,0.0706]
[1746519571260,0.7383215,94202.0,94201.0,0.0611]
[1746519573158,0.7383215,94202.0,94201.0,0.0516]
[1746519573765,0.7383215,94202.0,94201.0,0.0449]
[1746519577064,0.7383215,94202.0,94201.0,0.042]
[1746519577968,0.8383215,94202.0,94201.0,0.042]
[1746519578165,0.7383215,94202.0,94201.0,0.0357]
[1746519579168,0.7383215,94202.0,94201.0,0.0262]
[1746519580166,0.7383215,94202.0,94201.0,0.0167]
[1746519580366,0.8383215,94202.0,94201.0,0.0167]
[1746519580567,0.7383215,94202.0,94201.0,0.0166]
[1746519581168,0.8383215,94202.0,94201.0,0.0166]
[1746519581463,0.8383215,94202.0,94201.0,0.0071]
[1746519581672,0.7383215,94202.0,94201.0,0.0071]
[1746519582169,0.8383215,94202.0,94201.0,0.0071]
[1746519582468,0.2123438,94201.0,94200.0,0.0411]
[1746519582867,0.2783438,94201.0,94200.0,0.0411]
[1746519583067,0.2783438,94201.0,94200.0,0.1591]
[1746519583465,0.2783438,94201.0,94200.0,0.1496]
[1746519583867,0.2783438,94201.0,94200.0,0.1401]
[1746519584260,0.2783438,94201.0,94200.0,0.1306]
[1746519584460,0.3803438,94201.0,94200.0,0.1306]
[1746519584663,0.2803438,94201.0,94200.0,0.1306]
[1746519585167,0.3803438,94201.0,94200.0,0.1306]
[1746519585560,0.3803438,94201.0,94200.0,0.1236]
[1746519596560,1.1019438,94201.0,94200.0,0.1236]
[1746519602167,1.1019438,94201.0,94200.0,1e-07]
[1746519602367,0.2123708,94189.0,94188.0,0.066]
[1746519602564,0.5731708,94189.0,94188.0,0.066]
[1746519603174,0.5731708,94189.0,94188.0,0.184]
[1746519603775,0.5751708,94189.0,94188.0,0.184]
[1746519604177,0.3628,94189.0,94187.0,0.00159257]
[1746519604369,0.2123843,94183.0,94182.0,0.01202213]
[1746519604566,0.2123911,94180.0,94179.0,0.0328]
[1746519604981,0.0530993,94178.0,94171.0,0.0339]
[1746519605174,0.2124069,94173.0,94172.0,0.0645]
[1746519605381,0.6409669,94173.0,94172.0,0.0645]
[1746519605578,0.6409669,94173.0,94172.0,0.07584009]
[1746519605579,0.7416669,94173.0,94172.0,0.07584009]
[1746519606073,0.7416669,94173.0,94172.0,0.19384009]
[1746519607081,0.6769069,94173.0,94172.0,0.19384009]
[1746519607289,0.7446669,94173.0,94172.0,0.19384009]
[1746519608081,0.7446669,94173.0,94172.0,0.40624929]
[1746519608082,0.46386,94173.0,94172.0,0.40624929]
[1746519608390,0.6762669,94173.0,94172.0,0.19384009]
[1746519608981,0.46386,94173.0,94172.0,0.19384009]
[1746519609185,0.6762669,94173.0,94172.0,0.19384009]
[1746519620186,0.6762669,94173.0,94172.0,0.16214009]
[1746519623192,0.2124348,94161.0,94154.0,0.05315]
[1746519623396,0.2124346,94161.0,94158.0,0.032]
[1746519623585,0.3608,94162.0,94161.0,0.212434]
[1746519623783,0.5732317,94162.0,94161.0,0.22367878]
[1746519624194,0.3608,94162.0,94161.0,0.118]
[1746519624406,0.5732317,94162.0,94161.0,0.118]
[1746519624790,0.5732317,94162.0,94161.0,0.330434]
[1746519624791,0.6069317,94162.0,94161.0,0.330434]
[1746519624996,0.43012,94162.0,94161.0,0.330434]
[1746519625396,0.6425517,94162.0,94161.0,0.330434]
[1746519625597,0.6425517,94162.0,94161.0,0.1839]
[1746519625801,0.6425517,94162.0,94161.0,0.396334]
[1746519626106,0.5732317,94162.0,94161.0,0.1839]
[1746519626403,0.6425517,94162.0,94161.0,0.1839]
[1746519626795,0.6425517,94162.0,94161.0,0.396334]
[1746519626796,0.6455517,94162.0,94161.0,0.396334]
[1746519627501,0.6455517,94162.0,94161.0,0.118]
[1746519627697,0.7122517,94162.0,94161.0,0.118]
[1746519628206,0.7122517,94162.0,94161.0,0.330434]
[1746519628408,0.6455517,94162.0,94161.0,0.330434]
[1746519629208,0.6497117,94162.0,94161.0,0.330434]
[1746519629406,0.6497117,94162.0,94161.0,0.118]
[1746519630109,0.6497117,94162.0,94161.0,0.362834]
[1746519630606,0.6497117,94162.0,94161.0,0.1504]
[1746519631006,0.6497117,94162.0,94161.0,0.362834]
[1746519631511,0.6497117,94162.0,94161.0,0.1504]
[1746519631809,0.6497117,94162.0,94161.0,0.118]
[1746519632300,0.6497117,94162.0,94152.0,0.00159316]
[1746519632301,0.212452,94153.0,94152.0,0.00159316]
[1746519632598,0.573252,94153.0,94152.0,0.00159316]
[1746519632800,0.573252,94153.0,94152.0,0.21404746]
[1746519633199,0.573252,94153.0,94152.0,0.11959316]
[1746519633402,0.606052,94153.0,94152.0,0.33204746]
[1746519633804,0.606052,94153.0,94152.0,0.11959316]
[1746519634905,0.606052,94153.0,94152.0,0.33204746]
[1746519635507,0.606052,94153.0,94152.0,0.36424746]
[1746519635508,0.609052,94153.0,94152.0,0.36424746]
[1746519636008,0.642052,94153.0,94152.0,0.36424746]
[1746519637110,0.642052,94153.0,94152.0,0.15179316]
[1746519640411,0.642052,94153.0,94152.0,0.36424746]
[1746519641202,0.82016552,94153.0,94152.0,0.15179316]
[1746519642108,0.79890552,94153.0,94152.0,0.36424746]
[1746519644309,0.21411352,94153.0,94152.0,0.36424746]
[1746519644513,0.21411352,94153.0,94152.0,0.42424746]
[1746519644514,0.036,94153.0,94152.0,0.42424746]
[1746519644711,0.003,94153.0,94152.0,0.36424746]
[1746519645115,0.215452,94153.0,94152.0,0.36424746]
[1746519648012,0.003,94153.0,94152.0,0.36424746]
[1746519648212,0.10734842,94158.0,94157.0,0.212443]
[1746519648521,0.10734842,94158.0,94157.0,0.318647]
[1746519648717,0.10734842,94158.0,94157.0,1.818647]
[1746519649219,0.10734842,94158.0,94157.0,2.002047]
[1746519649408,0.11034842,94158.0,94157.0,1.702047]
[1746519649721,0.11034842,94158.0,94157.0,1.91449]
[1746519649917,0.32278912,94158.0,94157.0,1.91449]
[1746519650117,0.11034842,94158.0,94157.0,1.91449]
[1746519650319,0.0323,94168.0,94167.0,0.2124204]
[1746519650615,0.2123987,94177.0,94168.0,0.2124182]
[1746519650817,0.2446987,94177.0,94168.0,0.3186102]
[1746519651006,0.0323,94177.0,94168.0,0.3186102]
[1746519651211,0.16116139,94176.0,94175.0,0.2124024]
[1746519651410,0.37356149,94176.0,94175.0,0.2124024]
[1746519651725,0.40556149,94176.0,94175.0,0.2124024]
[1746519652212,0.19316139,94176.0,94175.0,0.3304024]
[1746519652614,0.40556149,94176.0,94175.0,0.3304024]
[1746519653420,0.40856149,94176.0,94175.0,0.3334024]
[1746519653716,0.19616139,94176.0,94175.0,0.3334024]
[1746519654912,0.035,94176.0,94175.0,0.3334024]
[1746519655320,0.2474001,94176.0,94175.0,0.3334024]
[1746519657214,0.2474001,94176.0,94175.0,0.2154024]
[1746519657421,0.6082001,94176.0,94175.0,0.2154024]
[1746519657724,0.6957571,94176.0,94175.0,0.003]
[1746519658627,0.6957571,94176.0,94175.0,0.2154024]
[1746519658926,0.6957571,94176.0,94175.0,0.003]
[1746519660525,0.0531083,94162.0,94154.0,0.0531121]
[1746519660726,0.0531083,94162.0,94152.0,0.00159316]
[1746519660727,0.212452,94153.0,94152.0,0.00159316]
[1746519660919,0.573252,94153.0,94152.0,0.00159316]
[1746519661118,0.573252,94153.0,94152.0,0.21404746]
[1746519661627,0.638652,94153.0,94152.0,0.21404746]
[1746519661822,0.635652,94153.0,94152.0,0.21404746]
[1746519662023,0.614392,94153.0,94152.0,0.21404746]
[1746519663629,0.617392,94153.0,94152.0,0.21404746]
[1746519664024,0.704949,94153.0,94152.0,0.00159316]
[1746519665028,0.704949,94153.0,94152.0,0.21404746]
[1746519665529,0.617392,94153.0,94152.0,0.21404746]
[1746519666524,0.704949,94153.0,94152.0,0.21404746]
[1746519666728,0.704949,94153.0,94152.0,0.00159316]
[1746519667025,0.617392,94153.0,94152.0,0.00159316]
[1746519667216,0.704949,94153.0,94152.0,0.00159316]
[1746519668226,0.704949,94153.0,94152.0,0.21404746]
[1746519672030,0.683689,94153.0,94152.0,0.21404746]
[1746519674327,0.155957,94153.0,94152.0,0.21404746]
[1746519674527,0.122357,94153.0,94152.0,0.21404746]
[1746519674730,0.334809,94153.0,94152.0,0.21404746]
[1746519675232,0.334809,94153.0,94152.0,0.00159316]
[1746519675233,0.695609,94153.0,94152.0,0.00159316]
[1746519676230,0.695609,94153.0,94152.0,0.21404746]
[1746519677234,0.695609,94153.0,94152.0,0.00159316]
[1746519677625,0.695609,94153.0,94152.0,0.21404746]
[1746519680240,0.0348,94153.0,94152.0,0.21404746]
[1746519680538,0.247252,94153.0,94152.0,0.21404746]
[1746519681026,0.247252,94153.0,94152.0,0.28094746]
[1746519682134,0.225992,94153.0,94152.0,1.78094746]
[1746519686840,0.003,94153.0,94152.0,1.78094746]
[1746519689736,0.21494463,94163.0,94162.0,0.2124317]
[1746519689935,0.13414463,94163.0,94162.0,0.5732317]
[1746519690843,0.0338,94165.0,94164.0,0.2124272]
[1746519691346,0.2462249,94165.0,94164.0,0.2124272]
[1746519691533,0.2462249,94165.0,94164.0,0.2768272]
[1746519693135,0.0338,94165.0,94164.0,0.2768272]
[1746519694037,0.2462249,94165.0,94164.0,0.2768272]
[1746519694547,0.2492249,94165.0,94164.0,0.2778272]
[1746519694845,0.0368,94165.0,94164.0,0.2778272]
[1746519695043,0.2492249,94165.0,94164.0,0.2778272]
[1746519695235,0.0368,94165.0,94164.0,0.2778272]
[1746519695436,0.2492249,94165.0,94164.0,0.2778272]
[1746519696951,0.16116139,94180.0,94172.0,0.2124092]
[1746519697150,0.16116139,94180.0,94172.0,0.5732092]
[1746519697345,0.2123782,94186.0,94185.0,0.2123776]
[1746519697547,0.2999352,94186.0,94185.0,0.2123776]
[1746519697746,0.3316352,94186.0,94185.0,0.2123776]
[1746519698351,0.3316352,94186.0,94185.0,0.22393833]
[1746519699150,0.3316352,94186.0,94185.0,0.2123776]
[1746519699351,0.3336352,94186.0,94185.0,0.2133776]
[1746519700156,0.3661352,94186.0,94185.0,0.2133776]
[1746519700450,0.3661352,94186.0,94185.0,0.001]
[1746519701040,0.3661352,94186.0,94144.0,0.00783443]
[1746519701041,0.614557,94186.0,94144.0,0.00783443]
[1746519701240,0.5014705,94153.0,94140.0,0.1625876]
[1746519701448,0.3000248,94146.0,94140.0,0.3750673]
[1746519701748,0.3000248,94146.0,94143.0,0.2124733]
[1746519702148,0.3000248,94146.0,94141.0,0.2124782]
[1746519702336,0.4437448,94146.0,94141.0,0.2124782]
[1746519702540,0.4437448,94146.0,94141.0,0.2124777]
[1746519702738,0.3646248,94146.0,94142.0,0.2124749]
[1746519702942,0.3646248,94146.0,94131.0,0.22819284]
[1746519702943,0.4437448,94146.0,94144.0,0.2124711]
[1746519703152,0.4457448,94146.0,94145.0,0.00306219]
[1746519703455,0.4457448,94146.0,94145.0,0.21553229]
[1746519703941,0.3646248,94146.0,94145.0,0.21353229]
[1746519704253,0.3646248,94146.0,94145.0,0.21553229]
[1746519704254,0.3686248,94146.0,94145.0,0.21553229]
[1746519711851,0.089557,94146.0,94145.0,0.21553229]
[1746519715750,0.3020248,94146.0,94145.0,0.21553229]
[1746519715950,0.3020248,94146.0,94145.0,0.24873229]
[1746519718359,0.2144678,94146.0,94145.0,0.24873229]
[1746519718561,0.3020248,94146.0,94145.0,0.24873229]
[1746519723159,0.2144678,94146.0,94145.0,0.24873229]
[1746519724550,0.2144678,94146.0,94145.0,0.00306219]
[1746519724746,0.2144678,94146.0,94145.0,0.21553229]
[1746519724951,0.2124678,94146.0,94145.0,0.21353229]
[1746519725261,0.2144678,94146.0,94145.0,0.21453229]
[1746519726660,0.2144678,94146.0,94145.0,0.21353229]
[1746519727859,0.2144678,94146.0,94145.0,0.00106219]
[1746519728060,0.3020248,94146.0,94145.0,0.00106219]
[1746519728261,0.3684248,94146.0,94145.0,0.21353229]
[1746519728959,0.3684248,94146.0,94145.0,0.00106219]
[1746519730962,0.3684248,94146.0,94145.0,0.21353229]
[1746519731958,0.4458648,94146.0,94145.0,0.21353229]
[1746519733156,0.4458648,94146.0,94145.0,0.00106219]
[1746519733361,0.4458648,94146.0,94145.0,9e-08]
[1746519733664,0.4458648,94146.0,94112.0,0.2599]
[1746519733665,0.3187646,94132.0,94131.0,0.0531249]
[1746519734154,0.4063216,94132.0,94131.0,0.0531249]
[1746519735266,0.4063216,94132.0,94131.0,0.3187395]
[1746519735461,0.4083216,94132.0,94131.0,0.3197395]
[1746519735856,0.30207,94132.0,94131.0,0.33074397]
[1746519738563,0.002,94132.0,94131.0,0.59064397]
[1746519739067,0.002,94132.0,94131.0,2.09064397]
[1746519743866,0.002,94132.0,94131.0,2.19687997]
[1746519747571,0.002,94132.0,94131.0,2.20687997]
[1746519748269,0.002,94132.0,94131.0,2.10064397]
[1746519750572,0.002,94132.0,94131.0,2.09064397]
[1746519752480,0.0672,94139.0,94138.0,0.2124859]
[1746519753669,0.0672,94139.0,94138.0,0.2792859]
[1746519754179,0.0682,94139.0,94138.0,0.2792859]
[1746519754680,0.0682,94139.0,94138.0,0.5391859]
[1746519755681,0.0355,94139.0,94138.0,0.5391859]
[1746519757082,0.088557,94139.0,94138.0,0.5391859]
[1746519757873,0.0337,94146.0,94145.0,0.2124701]
[1746519758579,0.19486139,94146.0,94145.0,0.2124701]
[1746519758771,0.19486139,94146.0,94145.0,0.2795701]
[1746519759276,0.19586139,94146.0,94145.0,0.2795701]
[1746519760282,0.16216139,94146.0,94145.0,0.2795701]
[1746519760680,0.16216139,94146.0,94145.0,0.5394701]
[1746519761479,0.16216139,94146.0,94145.0,2.0394701]
[1746519762783,0.001,94146.0,94145.0,2.0394701]
[1746519764086,0.0349,94156.0,94149.0,0.053115]
[1746519764386,0.0355,94155.0,94154.0,0.2124498]
[1746519766187,0.0694,94155.0,94154.0,0.2124498]
[1746519766388,0.0694,94155.0,94154.0,0.2144498]
[1746519766389,0.0704,94155.0,94154.0,0.2144498]
[1746519767074,0.0015,94170.0,94167.0,0.2124204]
[1746519767279,0.24871839,94168.0,94167.0,0.5732204]
[1746519767672,0.24871839,94168.0,94167.0,2.1894124]
[1746519767673,0.16116139,94168.0,94167.0,2.1894124]
[1746519767986,0.16116139,94168.0,94167.0,2.6794124]
[1746519768188,0.0015,94170.0,94169.0,0.2124159]
[1746519768387,0.0323,94182.0,94175.0,0.2124024]
[1746519768887,0.0323,94182.0,94175.0,0.5732024]
[1746519769991,0.0323,94182.0,94175.0,0.58427561]
[1746519771181,0.2123912,94180.0,94175.0,0.58527561]
[1746519771989,0.088557,94176.0,94175.0,0.58527561]
[1746519775491,0.001,94176.0,94175.0,0.58527561]
[1746519775691,0.122857,94176.0,94175.0,0.58527561]
[1746519782796,0.3352571,94176.0,94175.0,0.3618]
[1746519782998,0.6960571,94176.0,94175.0,0.2134024]
[1746519783581,0.6960571,94176.0,94175.0,0.001]
[1746519784498,0.6960571,94176.0,94175.0,0.2134024]
[1746519785212,0.8140571,94176.0,94175.0,0.2134024]
[1746519785498,0.8140571,94176.0,94175.0,0.001]
[1746519785796,0.8140571,94176.0,94175.0,0.2134024]
[1746519786190,0.6960571,94176.0,94175.0,0.2134024]
[1746519787086,0.6960571,94176.0,94175.0,0.001]
[1746519787894,0.6960571,94176.0,94175.0,0.2134024]
[1746519788896,0.6960571,94176.0,94175.0,0.001]
[1746519789902,0.6960571,94176.0,94175.0,0.2134024]
[1746519790191,0.6960571,94176.0,94175.0,0.001]
[1746519790799,0.6960571,94176.0,94154.0,0.4231327]
[1746519790800,0.2124475,94155.0,94154.0,0.4231327]
[1746519791004,0.5732475,94155.0,94154.0,0.4762442]
[1746519791606,0.5732475,94155.0,94154.0,0.3700212]
[1746519791902,0.5732475,94155.0,94154.0,0.157586]
[1746519791903,0.6406475,94155.0,94154.0,0.157586]
[1746519792089,0.6406475,94155.0,94154.0,0.3730358]
[1746519792488,0.6406475,94155.0,94154.0,0.160586]
[1746519793196,0.6406475,94155.0,94154.0,0.003]
[1746519793500,0.6937598,94155.0,94154.0,0.2124498]
[1746519793702,0.6937598,94155.0,94154.0,0.2144498]
[1746519795101,0.6937598,94155.0,94154.0,0.2124498]
[1746519795291,0.6937598,94155.0,94154.0,0.2134498]
[1746519796898,0.6937598,94155.0,94154.0,0.001]
[1746519797199,0.7478721,94155.0,94154.0,0.2124498]
[1746519797599,0.212452,94153.0,94152.0,0.21404736]
[1746519797894,0.212452,94153.0,94152.0,0.00159316]
[1746519799698,0.212452,94153.0,94152.0,0.00259316]
[1746519801098,0.212452,94153.0,94152.0,0.21504746]
[1746519801303,0.2124791,94141.0,94140.0,0.0337]
[1746519801505,0.2125197,94128.0,94123.0,0.0531294]
[1746519801898,0.2125197,94128.0,94127.0,0.3167761]
[1746519803512,0.2095197,94128.0,94127.0,0.3167761]
[1746519805615,0.3957,94129.0,94128.0,0.2125084]
[1746519805819,0.3608,94129.0,94128.0,0.3701654]
[1746519806513,0.5733062,94129.0,94128.0,0.3701654]
[1746519806914,0.5743062,94129.0,94128.0,0.3751654]
[1746519807303,0.3618,94129.0,94128.0,0.3751654]
[1746519809217,0.001,94129.0,94128.0,0.3751654]
[1746519809510,0.3618,94129.0,94128.0,0.3751654]
[1746519812213,0.5743062,94129.0,94128.0,0.3751654]
[1746519813511,0.5743062,94129.0,94128.0,0.3391654]
[1746519813916,0.6111062,94129.0,94128.0,0.3391654]
[1746519817028,0.6111062,94129.0,94128.0,0.2880084]
[1746519817324,0.6111062,94129.0,94128.0,0.3391654]
[1746519823228,0.6111062,94129.0,94128.0,0.2880084]
[1746519823426,0.6111062,94129.0,94128.0,0.3391654]
[1746519826030,0.6111062,94129.0,94128.0,0.2880084]
[1746519827330,0.3986,94129.0,94128.0,0.2880084]
[1746519827519,0.6111062,94129.0,94128.0,0.2880084]
[1746519830622,0.6455062,94129.0,94128.0,0.2880084]
[1746519831029,0.6455062,94129.0,94128.0,0.3391654]
[1746519831437,0.6455062,94129.0,94128.0,0.2676654]
[1746519831724,0.7189862,94129.0,94128.0,0.2676654]
[1746519831931,0.7189862,94129.0,94128.0,0.3040654]
[1746519832626,0.7189862,94129.0,94128.0,0.2676654]
[1746519833425,0.7189862,94129.0,94128.0,0.055157]
[1746519834128,0.7189862,94129.0,94128.0,0.004]
[1746519835128,0.7635062,94129.0,94128.0,0.004]
[1746519835328,0.8369862,94129.0,94128.0,0.004]
[1746519835526,0.8369862,94129.0,94128.0,0.2165084]
[1746519836037,0.7179862,94129.0,94128.0,0.2125084]
[1746519836234,0.7189862,94129.0,94128.0,0.2155084]
[1746519840527,0.7189862,94129.0,94128.0,0.2849084]
[1746519840732,0.7189862,94129.0,94128.0,0.2742784]
[1746519841126,0.7189862,94129.0,94128.0,0.2388784]
[1746519842124,0.3237862,94129.0,94128.0,0.2900354]
[1746519843838,0.11128,94129.0,94128.0,0.2900354]
[1746519844036,0.2135062,94129.0,94128.0,0.2900354]
[1746519846435,0.001,94129.0,94128.0,0.2900354]
[1746519846637,0.2135062,94129.0,94128.0,0.2900354]
[1746519847339,0.001,94129.0,94128.0,0.2900354]
[1746519847948,0.2135062,94129.0,94128.0,0.2900354]
[1746519849241,0.001,94129.0,94128.0,0.2900354]
[1746519850129,0.0368,94129.0,94128.0,0.2900354]
[1746519850838,0.001,94129.0,94128.0,0.2900354]
[1746519855843,0.2135062,94129.0,94128.0,0.2900354]
[1746519856142,0.001,94129.0,94128.0,0.2900354]
[1746519856535,0.0358,94129.0,94128.0,0.2900354]
[1746519859449,0.07971824,94129.0,94128.0,0.2900354]
[1746519860843,0.29222444,94129.0,94128.0,0.2900354]
[1746519862148,0.07971824,94129.0,94128.0,0.2900354]
[1746519863338,0.29222444,94129.0,94128.0,0.2900354]
[1746519863740,0.07971824,94129.0,94128.0,0.2900354]
[1746519867450,0.0358,94129.0,94128.0,0.2900354]
[1746519867850,0.2483062,94129.0,94128.0,0.2900354]
[1746519868236,0.0358,94129.0,94128.0,0.2900354]
[1746519870151,0.2483062,94129.0,94128.0,0.2900354]
[1746519870744,0.2838062,94129.0,94128.0,0.2900354]
[1746519872251,0.41821,94129.0,94128.0,0.2900354]
[1746519873253,0.2057038,94129.0,94128.0,0.2900354]
[1746519873451,0.41821,94129.0,94128.0,0.2900354]
[1746519874553,0.41821,94129.0,94128.0,0.2388784]
[1746519874744,0.41821,94129.0,94128.0,0.2900354]
[1746519876054,0.38271,94129.0,94128.0,0.2900354]
[1746519876754,0.29222468,94129.0,94128.0,0.2900354]
[1746519878957,0.07971848,94129.0,94128.0,0.2900354]
[1746519879657,0.16124987,94140.0,94139.0,0.2124836]
[1746519879955,0.16124987,94140.0,94139.0,0.2636406]
[1746519880149,0.16124987,94140.0,94139.0,1.7636406]
[1746519881063,0.036,94145.0,94144.0,0.2124723]
[1746519881460,0.0714,94145.0,94144.0,0.2636293]
[1746519883360,0.0734,94145.0,94144.0,0.2636293]
[1746519883950,0.038,94145.0,94144.0,0.2636293]
[1746519884260,0.038,94145.0,94144.0,0.27464392]
[1746519884664,0.038,94145.0,94144.0,1.77464392]
[1746519891050,0.19942563,94145.0,94144.0,1.77464392]
[1746519891655,0.19942563,94145.0,94144.0,1.80924392]
[1746519892558,0.41189573,94145.0,94144.0,1.77464392]
[1746519892959,0.41189573,94145.0,94144.0,0.27464392]
[1746519894371,0.2504701,94145.0,94144.0,0.27464392]
[1746519895678,0.038,94145.0,94144.0,0.27464392]
[1746519896271,0.2837701,94145.0,94144.0,0.27464392]
[1746519897970,0.0713,94145.0,94144.0,0.27464392]
[1746519898364,0.20574777,94145.0,94144.0,0.27464392]
[1746519899170,0.41821787,94145.0,94144.0,0.27464392]
[1746519900264,0.20574777,94145.0,94144.0,0.27464392]
[1746519900670,0.41821787,94145.0,94144.0,0.27464392]
[1746519901770,0.41821787,94145.0,94134.0,0.1576]
[1746519901771,0.2124926,94135.0,94134.0,0.1576]
[1746519901971,0.2124926,94135.0,94134.0,0.3700919]
[1746519902275,0.3189895,94137.0,94136.0,0.2124904]
[1746519902472,0.3189895,94137.0,94136.0,0.22318536]
[1746519902776,0.3189895,94137.0,94136.0,0.27434236]
[1746519903269,0.1065,94137.0,94136.0,0.27434236]
[1746519903672,0.15041584,94137.0,94136.0,0.27434236]
[1746519903868,0.15141584,94137.0,94136.0,0.27534236]
[1746519904069,0.15141584,94137.0,94136.0,0.31154236]
[1746519904581,0.36390394,94137.0,94136.0,0.31154236]
[1746519904777,0.15141584,94137.0,94136.0,0.31154236]
[1746519907675,0.36390394,94137.0,94136.0,0.31154236]
[1746519908273,0.15141584,94137.0,94136.0,0.31154236]
[1746519908980,0.36390394,94137.0,94136.0,0.31154236]
[1746519910084,0.36390394,94137.0,94136.0,0.27534236]
[1746519910686,0.36390394,94137.0,94136.0,0.2646474]
[1746519911371,0.36390394,94137.0,94136.0,0.27569404]
[1746519911567,0.15141584,94137.0,94136.0,0.27569404]
[1746519911780,0.36390394,94137.0,94136.0,0.27569404]